[Event "Early-Titled-Tuesday-Blitz-June-18-2024"]
[Site "Chess.com"]
[Date "2024.06.18"]
[Round "6"]
[White "Masterisback04"]
[Black "MasterofMasters2006"]
[Result "0-1"]
[WhiteElo "2105"]
[BlackElo "2247"]
[TimeControl "180+1"]
[EndTime "9:07:01 PDT"]
[Termination "MasterofMasters2006 won on time"]

1. e4 {[%clk 0:03:00.9]} 1... e5 {[%clk 0:02:59.7]} 2. f4 {[%clk 0:03:00.9]}
2... d5 {[%clk 0:02:58.7]} 3. Nf3 {[%clk 0:03:01]} 3... exf4 {[%clk 0:02:56.7]}
4. exd5 {[%clk 0:03:00.7]} 4... Nf6 {[%clk 0:02:55.8]} 5. c4 {[%clk 0:02:46.9]}
5... c6 {[%clk 0:02:52.8]} 6. d4 {[%clk 0:02:47.3]} 6... cxd5 {[%clk 0:02:52.7]}
7. Bxf4 {[%clk 0:02:47.3]} 7... Nc6 {[%clk 0:02:52.2]} 8. Nc3 {[%clk 0:02:46.7]}
8... Bb4 {[%clk 0:02:51.5]} 9. Bd3 {[%clk 0:02:46.8]} 9... O-O {[%clk
0:02:50.7]} 10. O-O {[%clk 0:02:44.9]} 10... Bg4 {[%clk 0:02:47]} 11. Bg5 {[%clk
0:02:43.8]} 11... Bxc3 {[%clk 0:02:43.9]} 12. bxc3 {[%clk 0:02:43.7]} 12... dxc4
{[%clk 0:02:42.3]} 13. Bxc4 {[%clk 0:02:40.9]} 13... h6 {[%clk 0:02:42.5]} 14.
Bh4 {[%clk 0:02:40.6]} 14... Qd6 {[%clk 0:02:37.3]} 15. Qd3 {[%clk 0:02:26.5]}
15... Nd5 {[%clk 0:02:31.7]} 16. Bg3 {[%clk 0:02:14.6]} 16... Qd7 {[%clk
0:02:27]} 17. Bb5 {[%clk 0:02:11.7]} 17... Bxf3 {[%clk 0:02:23.1]} 18. Qxf3
{[%clk 0:02:10.9]} 18... a6 {[%clk 0:02:20.2]} 19. Bc4 {[%clk 0:01:55.9]} 19...
Rad8 {[%clk 0:02:19.7]} 20. Rae1 {[%clk 0:01:53.1]} 20... Na5 {[%clk 0:02:13.1]}
21. Be2 {[%clk 0:01:12.4]} 21... b5 {[%clk 0:02:11.6]} 22. Bd1 {[%clk
0:01:10.2]} 22... Rc8 {[%clk 0:02:09.8]} 23. Qh5 {[%clk 0:00:53.6]} 23... Rxc3
{[%clk 0:01:59.5]} 24. Re5 {[%clk 0:00:33.9]} 24... Ne3 {[%clk 0:01:55.1]} 0-1

[Event "Early-Titled-Tuesday-Blitz-June-18-2024"]
[Site "Chess.com"]
[Date "2024.06.18"]
[Round "6"]
[White "LileKoridze"]
[Black "Iball95"]
[Result "0-1"]
[WhiteElo "2432"]
[BlackElo "2818"]
[TimeControl "180+1"]
[EndTime "9:07:02 PDT"]
[Termination "Iball95 won by resignation"]

1. d4 {[%clk 0:03:00.9]} 1... d5 {[%clk 0:02:59.6]} 2. c4 {[%clk 0:03:00.8]}
2... e6 {[%clk 0:03:00.2]} 3. Nf3 {[%clk 0:02:53.9]} 3... Nf6 {[%clk 0:02:59.7]}
4. g3 {[%clk 0:02:54.1]} 4... c5 {[%clk 0:02:59.8]} 5. cxd5 {[%clk 0:02:53.9]}
5... cxd4 {[%clk 0:02:59.8]} 6. Nxd4 {[%clk 0:02:53.3]} 6... Qxd5 {[%clk
0:02:57.5]} 7. Nf3 {[%clk 0:02:40.2]} 7... Qxd1+ {[%clk 0:02:56.5]} 8. Kxd1
{[%clk 0:02:40.2]} 8... Nc6 {[%clk 0:02:53.5]} 9. Bg2 {[%clk 0:02:39.3]} 9... e5
{[%clk 0:02:49.2]} 10. Nc3 {[%clk 0:02:39]} 10... Bf5 {[%clk 0:02:48.1]} 11. a3
{[%clk 0:02:36.7]} 11... O-O-O+ {[%clk 0:02:47.7]} 12. Ke1 {[%clk 0:02:36.8]}
12... h6 {[%clk 0:02:40.5]} 13. Be3 {[%clk 0:02:35.4]} 13... Ng4 {[%clk
0:02:35.7]} 14. Bd2 {[%clk 0:02:29.3]} 14... Bc5 {[%clk 0:02:18.2]} 15. e3
{[%clk 0:02:24.5]} 15... Kb8 {[%clk 0:02:11.3]} 16. h3 {[%clk 0:02:18]} 16...
Nf6 {[%clk 0:02:10.9]} 17. b4 {[%clk 0:02:05.5]} 17... Bd6 {[%clk 0:02:10.3]}
18. Rc1 {[%clk 0:02:04.6]} 18... e4 {[%clk 0:02:08.4]} 19. Ng1 {[%clk
0:02:02.1]} 19... Ne5 {[%clk 0:02:08]} 20. Kf1 {[%clk 0:02:01.5]} 20... Nd3
{[%clk 0:02:07.4]} 21. Rc2 {[%clk 0:02:01.6]} 21... Be5 {[%clk 0:02:01.1]} 22.
Nge2 {[%clk 0:02:01]} 22... Rd7 {[%clk 0:02:00.6]} 23. Nf4 {[%clk 0:01:59.5]}
23... Rhd8 {[%clk 0:01:47.2]} 24. Nxd3 {[%clk 0:01:45.9]} 24... exd3 {[%clk
0:01:44.6]} 25. Rc1 {[%clk 0:01:45.7]} 25... Rc8 {[%clk 0:01:39.1]} 26. f4
{[%clk 0:01:37.8]} 26... Bxc3 {[%clk 0:01:00.7]} 27. Rxc3 {[%clk 0:01:37.2]}
27... Be4 {[%clk 0:00:47.4]} 28. Rxc8+ {[%clk 0:01:34.9]} 28... Kxc8 {[%clk
0:00:48.3]} 29. Kf2 {[%clk 0:01:34.9]} 29... Rc7 {[%clk 0:00:47.8]} 30. Rc1
{[%clk 0:01:33.1]} 30... Rxc1 {[%clk 0:00:40.5]} 31. Bxc1 {[%clk 0:01:33.3]}
31... Bxg2 {[%clk 0:00:41.2]} 32. Kxg2 {[%clk 0:01:33.9]} 32... Ne4 {[%clk
0:00:41.7]} 0-1

[Event "Early-Titled-Tuesday-Blitz-June-18-2024"]
[Site "Chess.com"]
[Date "2024.06.18"]
[Round "6"]
[White "milovichalex"]
[Black "SoCalJuniorChess"]
[Result "1-0"]
[WhiteElo "2404"]
[BlackElo "2214"]
[TimeControl "180+1"]
[EndTime "9:07:10 PDT"]
[Termination "milovichalex won by resignation"]

1. e4 {[%clk 0:02:54]} 1... d5 {[%clk 0:02:58.9]} 2. exd5 {[%clk 0:02:53.9]}
2... Qxd5 {[%clk 0:02:59.8]} 3. Nc3 {[%clk 0:02:54]} 3... Qd8 {[%clk 0:02:59.9]}
4. d4 {[%clk 0:02:54.3]} 4... Nf6 {[%clk 0:02:59.2]} 5. Bc4 {[%clk 0:02:54.4]}
5... a6 {[%clk 0:02:57.3]} 6. Nf3 {[%clk 0:02:54.6]} 6... b5 {[%clk 0:02:56.6]}
7. Bb3 {[%clk 0:02:53.5]} 7... e6 {[%clk 0:02:54.6]} 8. a3 {[%clk 0:02:53]} 8...
c5 {[%clk 0:02:54.6]} 9. dxc5 {[%clk 0:02:51]} 9... Qxd1+ {[%clk 0:02:53.4]} 10.
Nxd1 {[%clk 0:02:50.7]} 10... Bxc5 {[%clk 0:02:53.7]} 11. O-O {[%clk 0:02:49]}
11... Bb7 {[%clk 0:02:53.5]} 12. Ne5 {[%clk 0:02:48]} 12... Nbd7 {[%clk
0:02:53.3]} 13. Nxd7 {[%clk 0:02:46.3]} 13... Nxd7 {[%clk 0:02:53.2]} 14. Be3
{[%clk 0:02:46.7]} 14... O-O {[%clk 0:02:52.1]} 15. c3 {[%clk 0:02:45.1]} 15...
Rfd8 {[%clk 0:02:49.7]} 16. Re1 {[%clk 0:02:44.4]} 16... Bxe3 {[%clk 0:02:40.5]}
17. Nxe3 {[%clk 0:02:44.5]} 17... Nc5 {[%clk 0:02:41]} 18. Bc2 {[%clk
0:02:44.6]} 18... Be4 {[%clk 0:02:41.5]} 19. Bxe4 {[%clk 0:02:41.4]} 19... Nxe4
{[%clk 0:02:42.4]} 20. Rad1 {[%clk 0:02:38.6]} 20... Kf8 {[%clk 0:02:24.7]} 21.
f3 {[%clk 0:02:38.2]} 21... Nc5 {[%clk 0:02:20.5]} 22. Rxd8+ {[%clk 0:02:15.6]}
22... Rxd8 {[%clk 0:02:20]} 23. Rd1 {[%clk 0:02:16]} 23... Rxd1+ {[%clk
0:02:14.1]} 24. Nxd1 {[%clk 0:02:16.1]} 24... Ke7 {[%clk 0:02:15]} 25. Kf2
{[%clk 0:02:16.5]} 25... Kd6 {[%clk 0:02:15.4]} 26. Ke3 {[%clk 0:02:17]} 26...
Kd5 {[%clk 0:02:15.9]} 27. Kd2 {[%clk 0:02:10.1]} 27... Na4 {[%clk 0:01:59.8]}
28. Kc2 {[%clk 0:02:03.4]} 28... Nb6 {[%clk 0:01:44.2]} 29. b3 {[%clk
0:01:59.7]} 29... e5 {[%clk 0:01:40.9]} 30. Kd3 {[%clk 0:01:59.2]} 30... g6
{[%clk 0:01:37.4]} 31. Ne3+ {[%clk 0:01:53.3]} 31... Kd6 {[%clk 0:01:37.7]} 32.
c4 {[%clk 0:01:51.2]} 32... f5 {[%clk 0:01:31.7]} 33. b4 {[%clk 0:01:44.7]}
33... bxc4+ {[%clk 0:01:25.5]} 34. Nxc4+ {[%clk 0:01:44.5]} 34... Nxc4 {[%clk
0:01:26.4]} 35. Kxc4 {[%clk 0:01:45.4]} 35... Kc6 {[%clk 0:01:27.1]} 36. a4
{[%clk 0:01:45.4]} 36... g5 {[%clk 0:01:15.3]} 37. b5+ {[%clk 0:01:42.5]} 37...
axb5+ {[%clk 0:01:13.4]} 38. axb5+ {[%clk 0:01:43]} 38... Kd6 {[%clk 0:01:05.8]}
39. b6 {[%clk 0:01:37.3]} 39... e4 {[%clk 0:00:56.1]} 40. fxe4 {[%clk
0:01:36.9]} 40... fxe4 {[%clk 0:00:56.4]} 41. Kd4 {[%clk 0:01:36.6]} 41... Kc6
{[%clk 0:00:55.5]} 42. Kxe4 {[%clk 0:01:37]} 42... Kxb6 {[%clk 0:00:56]} 43. Kf5
{[%clk 0:01:37.6]} 43... h6 {[%clk 0:00:56.5]} 44. Kg6 {[%clk 0:01:37.8]} 1-0

[Event "Early-Titled-Tuesday-Blitz-June-18-2024"]
[Site "Chess.com"]
[Date "2024.06.18"]
[Round "6"]
[White "YurasovMat-2012"]
[Black "Iuckyducky"]
[Result "1-0"]
[WhiteElo "2630"]
[BlackElo "2308"]
[TimeControl "180+1"]
[EndTime "9:07:14 PDT"]
[Termination "YurasovMat-2012 won on time"]

1. e4 {[%clk 0:03:00.9]} 1... c5 {[%clk 0:02:53.9]} 2. Nf3 {[%clk 0:02:58.9]}
2... Nc6 {[%clk 0:02:53.2]} 3. Bb5 {[%clk 0:02:58.9]} 3... e5 {[%clk 0:02:50.6]}
4. O-O {[%clk 0:02:58.2]} 4... Bd6 {[%clk 0:02:50.1]} 5. c3 {[%clk 0:02:56]}
5... a6 {[%clk 0:02:34.2]} 6. Bxc6 {[%clk 0:02:53.5]} 6... dxc6 {[%clk 0:02:34]}
7. d4 {[%clk 0:02:54.1]} 7... exd4 {[%clk 0:02:25.3]} 8. cxd4 {[%clk 0:02:51.6]}
8... Bg4 {[%clk 0:02:25.7]} 9. e5 {[%clk 0:02:46.3]} 9... Bc7 {[%clk 0:02:21.8]}
10. h3 {[%clk 0:02:34]} 10... Bxf3 {[%clk 0:02:14.3]} 11. Qxf3 {[%clk
0:02:34.9]} 11... cxd4 {[%clk 0:02:13.1]} 12. Qg4 {[%clk 0:02:34.6]} 12... Bxe5
{[%clk 0:02:06.8]} 13. Re1 {[%clk 0:02:33.7]} 13... Ne7 {[%clk 0:01:04.1]} 14.
Rxe5 {[%clk 0:02:29.4]} 14... O-O {[%clk 0:01:04.6]} 15. Nd2 {[%clk 0:02:27.3]}
15... Ng6 {[%clk 0:01:02.1]} 16. Rh5 {[%clk 0:02:26.4]} 16... Re8 {[%clk
0:00:52.9]} 17. Nf3 {[%clk 0:02:24.5]} 17... Re2 {[%clk 0:00:22.3]} 18. Rxh7
{[%clk 0:02:20.9]} 18... d3 {[%clk 0:00:17]} 19. Bg5 {[%clk 0:02:13]} 19... Qb6
{[%clk 0:00:15.1]} 20. Rh5 {[%clk 0:01:57.4]} 20... Qxf2+ {[%clk 0:00:13.2]} 21.
Kh1 {[%clk 0:01:57.9]} 21... Rae8 {[%clk 0:00:10.4]} 22. Rd1 {[%clk 0:01:54.8]}
22... d2 {[%clk 0:00:01.4]} 23. Bxd2 {[%clk 0:01:48.7]} 23... Rd8 {[%clk
0:00:01]} 24. Kh2 {[%clk 0:01:38]} 1-0

[Event "Early-Titled-Tuesday-Blitz-June-18-2024"]
[Site "Chess.com"]
[Date "2024.06.18"]
[Round "6"]
[White "Roachelley"]
[Black "SALVA-DALI"]
[Result "0-1"]
[WhiteElo "2541"]
[BlackElo "2758"]
[TimeControl "180+1"]
[EndTime "9:07:22 PDT"]
[Termination "SALVA-DALI won by resignation"]

1. d4 {[%clk 0:02:57.6]} 1... Nf6 {[%clk 0:02:02.5]} 2. Nf3 {[%clk 0:02:55.3]}
2... g6 {[%clk 0:02:01.8]} 3. e3 {[%clk 0:02:55.5]} 3... Bg7 {[%clk 0:02:02.7]}
4. b3 {[%clk 0:02:56]} 4... O-O {[%clk 0:02:03.6]} 5. Ba3 {[%clk 0:02:56.6]}
5... d5 {[%clk 0:02:04.5]} 6. Nbd2 {[%clk 0:02:56.4]} 6... Ne4 {[%clk
0:02:05.2]} 7. Nxe4 {[%clk 0:02:48.3]} 7... dxe4 {[%clk 0:02:06.1]} 8. Nd2
{[%clk 0:02:48.7]} 8... f5 {[%clk 0:02:06.3]} 9. h4 {[%clk 0:02:44.7]} 9... h6
{[%clk 0:02:05.3]} 10. Bc4+ {[%clk 0:02:27.8]} 10... Kh7 {[%clk 0:02:02.5]} 11.
h5 {[%clk 0:02:25.3]} 11... g5 {[%clk 0:02:01.2]} 12. g4 {[%clk 0:02:25.1]}
12... Nc6 {[%clk 0:01:55.6]} 13. Be2 {[%clk 0:02:10.9]} 13... Rf7 {[%clk
0:01:54.3]} 14. gxf5 {[%clk 0:02:07.6]} 14... Bxf5 {[%clk 0:01:55.2]} 15. Bg4
{[%clk 0:02:06.9]} 15... e6 {[%clk 0:01:39.3]} 16. c3 {[%clk 0:01:59.8]} 16...
a5 {[%clk 0:01:35.1]} 17. Rg1 {[%clk 0:01:54]} 17... a4 {[%clk 0:01:35.3]} 18.
Qc2 {[%clk 0:01:51.5]} 18... axb3 {[%clk 0:01:28.7]} 19. axb3 {[%clk 0:01:52.4]}
19... Qd5 {[%clk 0:01:28.4]} 20. Be2 {[%clk 0:01:41.4]} 20... b5 {[%clk
0:01:23.7]} 21. Bb2 {[%clk 0:01:31.3]} 21... Rxa1+ {[%clk 0:01:18.5]} 22. Bxa1
{[%clk 0:01:32.2]} 22... e5 {[%clk 0:01:18.6]} 23. Bg4 {[%clk 0:00:58.7]} 23...
exd4 {[%clk 0:01:16.2]} 24. exd4 {[%clk 0:00:54.3]} 24... b4 {[%clk 0:01:07.6]}
25. Bxf5+ {[%clk 0:00:43.3]} 25... Qxf5 {[%clk 0:01:03.5]} 26. Qxe4 {[%clk
0:00:38.8]} 26... Re7 {[%clk 0:01:03.3]} 0-1

[Event "Early-Titled-Tuesday-Blitz-June-18-2024"]
[Site "Chess.com"]
[Date "2024.06.18"]
[Round "6"]
[White "Arteler"]
[Black "Weifd"]
[Result "1-0"]
[WhiteElo "2215"]
[BlackElo "2378"]
[TimeControl "180+1"]
[EndTime "9:07:28 PDT"]
[Termination "Arteler won by resignation"]

1. e4 {[%clk 0:03:00.9]} 1... c5 {[%clk 0:02:58.6]} 2. Nf3 {[%clk 0:03:01]} 2...
e6 {[%clk 0:02:59.1]} 3. c3 {[%clk 0:03:00.7]} 3... Nf6 {[%clk 0:02:58.5]} 4. e5
{[%clk 0:03:00.8]} 4... Nd5 {[%clk 0:02:58.9]} 5. d4 {[%clk 0:03:01]} 5... cxd4
{[%clk 0:02:59.4]} 6. cxd4 {[%clk 0:03:01.9]} 6... d6 {[%clk 0:02:59.7]} 7. Bd3
{[%clk 0:03:02]} 7... Be7 {[%clk 0:02:59]} 8. O-O {[%clk 0:02:58]} 8... O-O
{[%clk 0:02:58.8]} 9. Nc3 {[%clk 0:02:57.6]} 9... Nxc3 {[%clk 0:02:57.4]} 10.
bxc3 {[%clk 0:02:58.5]} 10... dxe5 {[%clk 0:02:56.5]} 11. dxe5 {[%clk
0:02:57.9]} 11... Nd7 {[%clk 0:02:56.9]} 12. Qe2 {[%clk 0:02:51.4]} 12... Nc5
{[%clk 0:02:56.8]} 13. Bc2 {[%clk 0:02:51.9]} 13... b6 {[%clk 0:02:55.5]} 14.
Rd1 {[%clk 0:02:51]} 14... Qc7 {[%clk 0:02:55]} 15. Ng5 {[%clk 0:02:38]} 15...
h6 {[%clk 0:02:48.5]} 16. Nh7 {[%clk 0:01:53.9]} 16... Rd8 {[%clk 0:02:11]} 17.
Nf6+ {[%clk 0:01:20.2]} 17... gxf6 {[%clk 0:01:38]} 18. Qg4+ {[%clk 0:01:18.7]}
18... Kh8 {[%clk 0:01:33.2]} 19. Bxh6 {[%clk 0:01:15.7]} 19... Rg8 {[%clk
0:01:24.2]} 20. Qh5 {[%clk 0:01:12.5]} 20... Rxg2+ {[%clk 0:01:20.7]} 21. Kf1
{[%clk 0:00:50.2]} 21... Qxe5 {[%clk 0:00:48.3]} 22. Bg5+ {[%clk 0:00:46.3]} 1-0

[Event "Early-Titled-Tuesday-Blitz-June-18-2024"]
[Site "Chess.com"]
[Date "2024.06.18"]
[Round "6"]
[White "Kotofeyca"]
[Black "karinachess1"]
[Result "0-1"]
[WhiteElo "2488"]
[BlackElo "2663"]
[TimeControl "180+1"]
[EndTime "9:07:30 PDT"]
[Termination "karinachess1 won by checkmate"]

1. d4 {[%clk 0:03:00.9]} 1... Nf6 {[%clk 0:03:00]} 2. c4 {[%clk 0:03:00.8]} 2...
e6 {[%clk 0:03:00.5]} 3. Nf3 {[%clk 0:03:00.9]} 3... d5 {[%clk 0:03:01]} 4. Nc3
{[%clk 0:03:00.9]} 4... Bb4 {[%clk 0:03:01.1]} 5. cxd5 {[%clk 0:02:59.6]} 5...
exd5 {[%clk 0:03:02]} 6. Qc2 {[%clk 0:02:59.1]} 6... O-O {[%clk 0:02:56.7]} 7.
Bg5 {[%clk 0:02:58.8]} 7... h6 {[%clk 0:02:56.8]} 8. Bh4 {[%clk 0:02:58.9]} 8...
g5 {[%clk 0:02:53.3]} 9. Bg3 {[%clk 0:02:58.9]} 9... Ne4 {[%clk 0:02:53.6]} 10.
e3 {[%clk 0:02:51.6]} 10... h5 {[%clk 0:02:42.4]} 11. Bd3 {[%clk 0:01:42.9]}
11... Bf5 {[%clk 0:02:41.7]} 12. h4 {[%clk 0:01:06.8]} 12... g4 {[%clk
0:02:36.6]} 13. Ng5 {[%clk 0:00:55.1]} 13... Re8 {[%clk 0:02:15.1]} 14. Nxe4
{[%clk 0:00:49.1]} 14... Bxe4 {[%clk 0:02:10.9]} 15. Bxe4 {[%clk 0:00:49.2]}
15... Rxe4 {[%clk 0:02:08.8]} 16. O-O-O {[%clk 0:00:48.4]} 16... Bxc3 {[%clk
0:01:55.7]} 17. Qxc3 {[%clk 0:00:45.2]} 17... Nc6 {[%clk 0:01:54.5]} 18. f3
{[%clk 0:00:39.4]} 18... Re6 {[%clk 0:01:53.9]} 19. fxg4 {[%clk 0:00:38.4]}
19... hxg4 {[%clk 0:01:54.8]} 20. Bf4 {[%clk 0:00:34.7]} 20... Qf6 {[%clk
0:01:49.2]} 21. Qb3 {[%clk 0:00:29.8]} 21... Qf5 {[%clk 0:01:40.6]} 22. Qxb7
{[%clk 0:00:18.8]} 22... Rb8 {[%clk 0:01:41]} 23. Qxc7 {[%clk 0:00:17.9]} 23...
Rb6 {[%clk 0:01:41.4]} 24. Rd2 {[%clk 0:00:14.5]} 24... Nb4 {[%clk 0:01:37.3]}
25. Qd8+ {[%clk 0:00:14.6]} 25... Kh7 {[%clk 0:01:37]} 26. a3 {[%clk 0:00:13.9]}
26... Nd3+ {[%clk 0:01:27.8]} 27. Kd1 {[%clk 0:00:11.9]} 27... Nxf4 {[%clk
0:01:23.4]} 28. exf4 {[%clk 0:00:10.5]} 28... Qb1# {[%clk 0:01:22.7]} 0-1

[Event "Early-Titled-Tuesday-Blitz-June-18-2024"]
[Site "Chess.com"]
[Date "2024.06.18"]
[Round "6"]
[White "bescmelasti"]
[Black "Acva-Alenok"]
[Result "1-0"]
[WhiteElo "2616"]
[BlackElo "2403"]
[TimeControl "180+1"]
[EndTime "9:07:34 PDT"]
[Termination "bescmelasti won by resignation"]

1. e4 {[%clk 0:03:00.9]} 1... c6 {[%clk 0:02:58.7]} 2. d4 {[%clk 0:02:59.8]}
2... d5 {[%clk 0:02:59.2]} 3. exd5 {[%clk 0:03:00.3]} 3... cxd5 {[%clk
0:03:00.1]} 4. Bd3 {[%clk 0:03:00.9]} 4... Nc6 {[%clk 0:02:59.2]} 5. Nf3 {[%clk
0:03:00.6]} 5... Nf6 {[%clk 0:02:59.8]} 6. h3 {[%clk 0:02:59]} 6... g6 {[%clk
0:02:59.2]} 7. Bf4 {[%clk 0:02:48]} 7... Bf5 {[%clk 0:02:56.6]} 8. Bxf5 {[%clk
0:02:48.3]} 8... gxf5 {[%clk 0:02:56.1]} 9. O-O {[%clk 0:02:47.6]} 9... e6
{[%clk 0:02:54.1]} 10. Nbd2 {[%clk 0:02:38.5]} 10... Bd6 {[%clk 0:02:52.8]} 11.
Bxd6 {[%clk 0:02:38.3]} 11... Qxd6 {[%clk 0:02:52.8]} 12. Re1 {[%clk 0:02:34.6]}
12... Rg8 {[%clk 0:02:23.8]} 13. c4 {[%clk 0:02:32]} 13... O-O-O {[%clk
0:02:04.4]} 14. Rc1 {[%clk 0:02:24.7]} 14... Rg7 {[%clk 0:01:58.5]} 15. Kh1
{[%clk 0:02:06.9]} 15... Rdg8 {[%clk 0:01:56.7]} 16. Rg1 {[%clk 0:02:07.4]}
16... Ne4 {[%clk 0:01:30.9]} 17. Qe2 {[%clk 0:02:07.4]} 17... Qf4 {[%clk
0:01:14.5]} 18. cxd5 {[%clk 0:02:05.2]} 18... exd5 {[%clk 0:01:13.9]} 19. Nxe4
{[%clk 0:02:01.5]} 19... fxe4 {[%clk 0:01:08.2]} 20. Ne5 {[%clk 0:02:02]} 20...
Rxg2 {[%clk 0:01:08.1]} 21. Rxc6+ {[%clk 0:01:57]} 21... bxc6 {[%clk 0:00:59.5]}
22. Rxg2 {[%clk 0:01:48.6]} 22... Qc1+ {[%clk 0:00:53.2]} 23. Kh2 {[%clk
0:01:47.9]} 23... Qf4+ {[%clk 0:00:37.1]} 24. Rg3 {[%clk 0:01:47.5]} 24... f6
{[%clk 0:00:33.4]} 25. Qa6+ {[%clk 0:01:37.7]} 25... Kb8 {[%clk 0:00:32.6]} 26.
Nxc6+ {[%clk 0:01:33.9]} 26... Kc7 {[%clk 0:00:32.4]} 27. Qa5+ {[%clk
0:01:28.3]} 27... Kxc6 {[%clk 0:00:19.4]} 28. Qc5+ {[%clk 0:01:28.5]} 1-0

[Event "Early-Titled-Tuesday-Blitz-June-18-2024"]
[Site "Chess.com"]
[Date "2024.06.18"]
[Round "6"]
[White "jguerramzllo"]
[Black "esskeettit"]
[Result "1-0"]
[WhiteElo "2671"]
[BlackElo "2503"]
[TimeControl "180+1"]
[EndTime "9:07:37 PDT"]
[Termination "jguerramzllo won by resignation"]

1. e4 {[%clk 0:02:55.9]} 1... c5 {[%clk 0:02:59.3]} 2. Nf3 {[%clk 0:02:55.7]}
2... Nc6 {[%clk 0:02:59.8]} 3. Bb5 {[%clk 0:02:55.3]} 3... g6 {[%clk 0:03:00]}
4. O-O {[%clk 0:02:55.6]} 4... Bg7 {[%clk 0:03:00.1]} 5. Re1 {[%clk 0:02:56.2]}
5... Nf6 {[%clk 0:03:00.4]} 6. c3 {[%clk 0:02:54.8]} 6... O-O {[%clk 0:03:00.4]}
7. h3 {[%clk 0:02:55.4]} 7... Qb6 {[%clk 0:02:51.9]} 8. Bf1 {[%clk 0:02:46.8]}
8... d5 {[%clk 0:02:41]} 9. e5 {[%clk 0:02:45.9]} 9... Ne8 {[%clk 0:02:37.7]}
10. d4 {[%clk 0:02:45.5]} 10... Nc7 {[%clk 0:02:27.2]} 11. b3 {[%clk 0:02:41]}
11... Bf5 {[%clk 0:02:17]} 12. Be3 {[%clk 0:02:39.7]} 12... cxd4 {[%clk
0:02:07.6]} 13. cxd4 {[%clk 0:02:37.9]} 13... Bxb1 {[%clk 0:01:38.1]} 14. Rxb1
{[%clk 0:02:35.9]} 14... Ne6 {[%clk 0:01:39]} 15. b4 {[%clk 0:02:26.3]} 15...
Rfc8 {[%clk 0:01:36.5]} 16. Qb3 {[%clk 0:02:13.6]} 16... a5 {[%clk 0:01:14.9]}
17. b5 {[%clk 0:02:06.5]} 17... Na7 {[%clk 0:00:20]} 18. Qxd5 {[%clk 0:02:04.9]}
18... Qd8 {[%clk 0:00:15.7]} 19. Qxb7 {[%clk 0:02:01.3]} 19... Rcb8 {[%clk
0:00:14.1]} 20. Qe4 {[%clk 0:01:59.9]} 20... Qd7 {[%clk 0:00:11.6]} 21. d5
{[%clk 0:01:57.6]} 21... Nd8 {[%clk 0:00:10.2]} 22. b6 {[%clk 0:01:55.7]} 22...
Nc8 {[%clk 0:00:08.8]} 23. Bb5 {[%clk 0:01:48.8]} 23... Qb7 {[%clk 0:00:08.3]}
24. Bc6 {[%clk 0:01:48.4]} 24... Qa6 {[%clk 0:00:03.4]} 25. Bxa8 {[%clk
0:01:46.6]} 25... Qxa8 {[%clk 0:00:04.3]} 26. Bc5 {[%clk 0:01:40.9]} 26... e6
{[%clk 0:00:03.2]} 27. dxe6 {[%clk 0:01:39.7]} 27... Qxe4 {[%clk 0:00:02.7]} 28.
exf7+ {[%clk 0:01:39.3]} 28... Kxf7 {[%clk 0:00:02.8]} 29. Rxe4 {[%clk 0:01:40]}
29... Ne6 {[%clk 0:00:03.7]} 30. Be3 {[%clk 0:01:38.1]} 30... Rb7 {[%clk
0:00:03.9]} 31. Ra4 {[%clk 0:01:37.3]} 31... Bf8 {[%clk 0:00:02.5]} 32. Rxa5
{[%clk 0:01:37.5]} 32... Bc5 {[%clk 0:00:03.2]} 33. Bxc5 {[%clk 0:01:36]} 1-0

[Event "Early-Titled-Tuesday-Blitz-June-18-2024"]
[Site "Chess.com"]
[Date "2024.06.18"]
[Round "6"]
[White "CristhianPortalR"]
[Black "Vengea_nce"]
[Result "0-1"]
[WhiteElo "2499"]
[BlackElo "2661"]
[TimeControl "180+1"]
[EndTime "9:07:43 PDT"]
[Termination "Vengea_nce won by resignation"]

1. e4 {[%clk 0:03:00.9]} 1... c5 {[%clk 0:02:59.1]} 2. Nf3 {[%clk 0:03:00.3]}
2... e6 {[%clk 0:02:59.6]} 3. d4 {[%clk 0:02:59.6]} 3... cxd4 {[%clk 0:03:00]}
4. Nxd4 {[%clk 0:03:00.5]} 4... Nc6 {[%clk 0:02:58.9]} 5. Nc3 {[%clk 0:03:00]}
5... Qc7 {[%clk 0:02:58.1]} 6. Be3 {[%clk 0:02:46.2]} 6... a6 {[%clk 0:02:57.2]}
7. f4 {[%clk 0:02:46]} 7... b5 {[%clk 0:02:55.7]} 8. Qf3 {[%clk 0:02:03]} 8...
Bb7 {[%clk 0:02:54.5]} 9. Be2 {[%clk 0:01:37.8]} 9... Nf6 {[%clk 0:02:48.8]} 10.
Nxc6 {[%clk 0:01:21]} 10... Qxc6 {[%clk 0:02:45.9]} 11. Bd3 {[%clk 0:01:20.9]}
11... b4 {[%clk 0:02:39.8]} 12. Ne2 {[%clk 0:01:15.8]} 12... Nxe4 {[%clk
0:02:37.9]} 13. Nd4 {[%clk 0:00:54.1]} 13... Qd5 {[%clk 0:02:36.2]} 14. O-O-O
{[%clk 0:00:51.5]} 14... Nc5 {[%clk 0:02:24.7]} 15. Qxd5 {[%clk 0:00:40.7]}
15... Bxd5 {[%clk 0:02:23.7]} 16. Rhg1 {[%clk 0:00:38.8]} 16... Nxd3+ {[%clk
0:02:15.5]} 17. Rxd3 {[%clk 0:00:38.6]} 17... Be7 {[%clk 0:02:15.9]} 18. Nb3
{[%clk 0:00:28.8]} 18... O-O {[%clk 0:02:12.4]} 19. Nc5 {[%clk 0:00:26.2]} 19...
Rfd8 {[%clk 0:02:01]} 20. b3 {[%clk 0:00:22.9]} 20... Bc6 {[%clk 0:01:56.9]} 21.
Rd2 {[%clk 0:00:16.9]} 21... d6 {[%clk 0:01:51.4]} 22. Nd3 {[%clk 0:00:17]}
22... a5 {[%clk 0:01:46.9]} 23. Rgd1 {[%clk 0:00:17.4]} 23... Be4 {[%clk
0:01:40.2]} 24. Kb1 {[%clk 0:00:17.4]} 24... f5 {[%clk 0:01:38.5]} 25. Nf2
{[%clk 0:00:16.8]} 25... Bxg2 {[%clk 0:01:38.2]} 26. Bd4 {[%clk 0:00:11]} 26...
g6 {[%clk 0:01:35.2]} 27. Re2 {[%clk 0:00:06.4]} 27... Kf7 {[%clk 0:01:32.1]}
28. Bb2 {[%clk 0:00:06.4]} 28... Bf3 {[%clk 0:01:30.8]} 29. Ree1 {[%clk
0:00:06.4]} 29... Bxd1 {[%clk 0:01:30.8]} 30. Rxd1 {[%clk 0:00:07.3]} 30... Bf6
{[%clk 0:01:31.2]} 31. Bxf6 {[%clk 0:00:06.8]} 31... Kxf6 {[%clk 0:01:32.1]} 32.
Nd3 {[%clk 0:00:07]} 32... e5 {[%clk 0:01:31.7]} 33. fxe5+ {[%clk 0:00:07.5]}
33... dxe5 {[%clk 0:01:32]} 0-1